Cogmind - Beta 17 @@@ ROGUE MODE // 2026.07.01 @ 11:24:47 Player: APerTAS Result: Destroyed by Y-45 Defender with Heavy Assault Rifle Performance ------------- Evolutions (0) 0 Regions Visited (2) 400 Robots Destroyed (9) 45 Value Destroyed (299) 299 Prototype IDs (1) 20 Alien Tech Used (0) 0 Bonus (5326) 5326 TOTAL SCORE: 6090 Bonus ------- Prayed to X0-1V1 5000 Major X0-1V1 Interference 450 Friendly Fire -124 Cogmind --------- Core Integrity 0/200 Matter 261/300 Energy 100/100 System Corruption 15% Temperature Cool (9) Movement Rolling (110) Location -10/Subcaves Parts ------- > --- POWER (1) -------- (None) > --- PROPULSION (3) --- Light Treads Subdweller Monowheel Subdweller Monowheel > --- UTILITY (2) ------ Small Storage Unit X0-1V1's Piety Tracker > --- WEAPON (1) ------- Heavy Assault Rifle > --- INVENTORY (8) ---- Subdweller Power Source Disposable Heat Sink Seismic Detector Scrap Shield Riot Gun Subdweller Machine Gun Grenade Launcher Peak State ------------ > --- POWER ------------ Improved Ion Engine > --- PROPULSION ------- Light Treads Subdweller Monowheel Subdweller Monowheel > --- UTILITY ---------- Small Storage Unit X0-1V1's Piety Tracker > --- WEAPON ----------- Riot Gun > --- INVENTORY -------- Subdweller Power Source Disposable Heat Sink Seismic Detector Scrap Shield Subdweller Machine Gun Grenade Launcher Flamer [Rating: 25] Favorites ----------- Power Ion Engine Engine Ion Engine Propulsion Light Treads Treads Light Treads Wheel Subdweller Monowheel Utility Small Storage Unit Device X0-1V1's Piety Tracker Storage Small Storage Unit Weapon Light Assault Rifle Energy Gun Riot Gun Ballistic Gun Light Assault Rifle Build | -11 -10 -10 ------- Run | Yrd Mat Sub Slots Evolved . | . . . Power . | . . . Propulsion . | . . . Utility . | . . . Weapon . | . . . Parts Attached 18 | 7 1 10 Power 3 | 1 . 2 Engine 3 | 1 . 2 Core . | . . . Reactor . | . . . Propulsion 5 | 2 . 3 Treads 3 | 2 . 1 Leg . | . . . Wheel 2 | . . 2 Hover . | . . . Flight . | . . . Utility 4 | 2 1 1 Device 3 | 1 1 1 Storage 1 | 1 . . Processor . | . . . Hackware . | . . . Protection . | . . . Artifact . | . . . Weapon 6 | 2 . 4 Energy Gun 2 | . . 2 Energy Cannon . | . . . Ballistic Gun 4 | 2 . 2 Ballistic Cannon . | . . . Launcher . | . . . Special Weapon . | . . . Impact Weapon . | . . . Slashing Weapon . | . . . Piercing Weapon . | . . . Special Melee Weapon . | . . . Unidentified Prototypes 1 | . 1 . Corrupted Parts 1 | . . 1 System Corruption 3 | . . 3 Parts Lost 5 | . . 5 Power 1 | . . 1 Propulsion 1 | . . 1 Utility 1 | . . 1 Weapon 2 | . . 2 Highest Loss Streak 4 | . . 4 To Critical Strikes . | . . . Average Backups 6 | 3 6 6 Power 1 | 1 2 1 Propulsion 1 | 1 2 1 Utility 1 | . . 2 Weapon 1 | . 1 2 Tool/Special . | . . . Unused Backups 9 | . . 9 Power 3 | . . 3 Propulsion 2 | . . 2 Utility 2 | . . 2 Weapon 2 | . . 2 Tool/Special . | . . . Average Slot Usage (%) 97 | . 100 97 Engine 13 | . 14 13 Treads 22 | . 28 21 Wheel 9 | . . 11 Device 13 | . 14 13 Storage 14 | . 14 14 Energy Gun 6 | . . 7 Ballistic Gun 16 | . 28 14 Peak Build Rating 25 | 7 19 25 Average Rating 17 | 5 9 21 On Entrance 8 | . 7 19 Avg Prop Armor Cover (%) 12 | . . 12 Naked Turns . | . . . Heaviest Build 18 | 13 13 18 Greatest Support 40 | 40 40 40 Greatest Overweight (x) . | . . . Average Overweight (x) . | . . . Largest Inventory Capacity 8 | 8 8 8 Average Capacity 7 | 6 8 8 Most Carried 8 | 5 7 8 Average Carried 6 | 3 6 7 Final Capacity 8 | 8 8 8 Final Carried 8 | 5 7 8 Class Distribution -------------------- 91% | Mutant 8% | Scavenger-Mutant Dominant Class ---------------- Mutant | -10/Materials Mutant | -10/Subcaves Resources | -11 -10 -10 ----------- Run | Yrd Mat Sub Matter Collected 450 | 290 . 160 Remotely . | . . . Salvage Created 399 | 107 . 292 Parts 24 | 4 . 20 Haulers Intercepted . | . . . Recyclers Shooed . | . . . Parts Field Recycled . | . . . Retrieved Matter . | . . . Parts Self-Destructed 7 | . . 7 Prevented 4 | . . 4 Parts Restored . | . . . Kills | -11 -10 -10 ------- Run | Yrd Mat Sub Combat Hostiles Destroyed 7 | . . 7 Guns 6 | . . 6 AOE 1 | . . 1 Classes Destroyed 6 | 2 . 4 Tunneler 1 | 1 . . Recycler 1 | 1 . . Grunt 2 | . . 2 Sentry 1 | . . 1 Subdweller 4 | . . 4 Scientist 1 | . . 1 Best Kill Streak 2 | 1 . 2 Combat Bots Only 2 | . . 2 Max Kills in Single Turn 1 | 1 . 1 Gunslinging . | . . . Exploded 1 | . . 1 Melee . | . . . Uniques/NPCs Destroyed . | . . . Combat | -11 -10 -10 -------- Run | Yrd Mat Sub Hostile Shots Fired 65 | . . 65 Missed 12 | . . 12 Hits 53 | . . 53 Projectile 53 | . . 53 Critical Strikes 1 | . . 1 Damage Taken 1073 | . . 1073 Core 262 | . . 262 Absorbed by Shields . | . . . Core Remaining (%) 100 | 100 . . Volleys Fired 59 | 10 . 49 Largest 2 | 2 . 2 Hottest 80 | 40 . 80 Shots Fired 92 | 20 . 72 Gun 92 | 20 . 72 Cannon . | . . . Launcher . | . . . Special . | . . . Kinetic 78 | 20 . 58 Thermal . | . . . Explosive . | . . . Electromagnetic 14 | . . 14 Robot Hit Streak 15 | 6 . 15 Robot Miss Streak 1 | 1 . 1 Penetration Max . | . . . Secondary Targets . | . . . Shots Hit Robots 73 | 14 . 59 Core Hits 22 | 4 . 18 Critical Kills . | . . . Critical Parts Destroyed . | . . . Critical Strikes . | . . . Melee Attacks . | . . . Impact . | . . . Slashing . | . . . Piercing . | . . . Sneak Attacks . | . . . Combat Hostiles . | . . . Follow-up Attacks . | . . . Damage Inflicted 743 | 118 . 625 Guns 743 | 118 . 625 Cannons . | . . . Explosions . | . . . Melee . | . . . Ramming . | . . . Kinetic 607 | 118 . 489 Thermal . | . . . Explosive . | . . . Electromagnetic 136 | . . 136 Impact . | . . . Slashing . | . . . Piercing . | . . . Highest Corruption 15 | . . 15 Average Corruption 7 | . . 7 Corruption Purged . | . . . Corruption Blocked . | . . . Effects 2 | . . 2 Heat Flow Errors 1 | . . 1 Data Loss (minor) 1 | . . 1 Overload Shots . | . . . Overflow Damage . | . . . Projectiles . | . . . Explosions . | . . . Melee . | . . . Knockbacks . | . . . Impact . | . . . Kinetic . | . . . Secondary . | . . . Self-Inflicted Damage . | . . . Shots . | . . . Rammed . | . . . Targets Rammed . | . . . Kicked . | . . . Crushed . | . . . Highest Temperature 61 | . . 61 Average Temperature 31 | . . 31 Received Heat Transfer 225 | . . 225 Siege Activations . | . . . Martial Activations . | . . . Shielding Activations . | . . . Robots Disrupted . | . . . Combat Hostiles . | . . . Robots Corrupted . | . . . Combat Hostiles . | . . . Parts Fried 1 | . . 1 Impact Corruptions . | . . . Robots Melted . | . . . Combat Hostiles . | . . . Parts Melted . | . . . Heat Transferred . | . . . Parts Sabotaged . | . . . Parts Stolen . | . . . Parts Stripped . | . . . Power Chain Reactions . | . . . Alert | -11 -10 -10 ------- Run | Yrd Mat Sub Maximum Alert Level . | . . . Low Security (%) 100 | 100 100 . Level 1 . | . . . Level 2 . | . . . Level 3 . | . . . Level 4 . | . . . Level 5 . | . . . High Security . | . . . Max Security . | . . . Peak Influence 18 | 5 18 . Initial . | . . . Average 2 | . 4 . Influence Increases 98 | 10 18 70 Destroy 0b10 Robot/C 60 | . . 60 Destroy 0b10 Robot/NC 10 | 10 . . Destroy Leader 10 | . . 10 Successful Hack 18 | . 18 . Influence Decreases 56 | 10 18 28 Time Decay 56 | 10 18 28 Squads Dispatched . | . . . Investigation . | . . . Extermination . | . . . Reinforcement . | . . . Assault . | . . . Garrison . | . . . Intercept . | . . . Searches Triggered . | . . . Construction Impeded . | . . . Haulers Reinforced . | . . . Active Scanning Responses . | . . . Cargo Convoy Interrupts . | . . . Stealth | -11 -10 -10 --------- Run | Yrd Mat Sub Distress Signals . | . . . Communications Jammed . | . . . Distress Signals . | . . . Times Spotted 10 | . . 10 Peak Tracking Total 3 | . . 3 Tactical Retreats . | . . . Traps | -11 -10 -10 ------- Run | Yrd Mat Sub Traps Triggered . | . . . Indirectly . | . . . Trap Hack Attempts . | . . . Triggered . | . . . Disarmed . | . . . Reprogrammed . | . . . Reused . | . . . Traps Extracted . | . . . Installed . | . . . Triggered . | . . . Machines | -11 -10 -10 ---------- Run | Yrd Mat Sub Machines Disabled . | . . . Max in Single Turn . | . . . Machines Repaired . | . . . Machines Dismantled . | . . . Machines Sabotaged . | . . . Overloaded Fab Kills . | . . . Hacking | -11 -10 -10 --------- Run | Yrd Mat Sub Machines Accessed 2 | . 2 . Terminals 2 | . 2 . Fabricators . | . . . Repair Stations . | . . . Recycling Units . | . . . Scanalyzers . | . . . Garrison Access . | . . . Total Hacks 4 | . 4 . Successful 2 | . 2 . Failed 2 | . 2 . Catastrophic 1 | . 1 . Database Lockouts . | . . . Manual 3 | . 3 . Terminals 4 | . 4 . Fabricators . | . . . Repair Stations . | . . . Recycling Units . | . . . Scanalyzers . | . . . Garrison Access . | . . . Terminal Hacks . | . . . Fabricator Hacks . | . . . Repair Station Hacks . | . . . Recycling Unit Hacks . | . . . Scanalyzer . | . . . Garrison Access Hacks . | . . . Unauthorized Hacks 2 | . 2 . Terminals 2 | . 2 . Botnet 2 | . 2 . Fabricators . | . . . Repair Stations . | . . . Recycling Units . | . . . Scanalyzers . | . . . Garrison Access . | . . . Data Cores Recovered . | . . . Used . | . . . Hacking Detections 2 | . 2 . Full Trace Events . | . . . Feedback Events . | . . . Feedback Blocked . | . . . Robot Schematics Acquired . | . . . Robots Built . | . . . Authchips . | . . . Time . | . . . Total Robot Build Rating . | . . . Part Schematics Acquired . | . . . Parts Built . | . . . Authchips . | . . . Time . | . . . Total Part Build Rating . | . . . Part Studies Acquired . | . . . Parts Repaired . | . . . Time . | . . . Parts Recycled . | . . . Recycled Matter . | . . . Retrieved Matter . | . . . Retrieved Components . | . . . Parts Scanalyzed . | . . . Part Schematics Acquired . | . . . Parts Damaged . | . . . Bothacking | -11 -10 -10 ------------ Run | Yrd Mat Sub Used RIF Installer . | . . . Robots Hacked . | . . . Non-combat . | . . . Combat . | . . . Robot Hacks Applied . | . . . Relay Couplers Released . | . . . Fabnet Peak Effective % . | . . . Robots Rewired . | . . . Allies Hacked . | . . . Hacks Repelled . | . . . Allies | -11 -10 -10 -------- Run | Yrd Mat Sub Total Allies . | . . . Largest Group . | . . . Highest-Rated Group . | . . . Highest-Rated Ally . | . . . Total Orders . | . . . Ally Attacks . | . . . Total Damage . | . . . Kills . | . . . Allies Corrupted . | . . . Allies Melted . | . . . X0-1V1 Amusement Gains 13 | . 3 10 Good Acts 2 | . . 2 Bad Acts 4 | . . 4 Intel | -11 -10 -10 ------- Run | Yrd Mat Sub Active Infowar (turns) 83 | 11 72 . Seismic 83 | 11 72 . Robot Analysis Total . | . . . Derelict Logs Recovered . | . . . Drone Launches . | . . . Drone Recoveries . | . . . Exploration | -11 -10 -10 ------------- Run | Yrd Mat Sub Turns Passed 848 | 165 87 596 Spaces Moved 440 | 75 44 321 Core 3 | 3 . . Treads 254 | 72 44 138 Legs . | . . . Wheels 183 | . . 183 Hover . | . . . Flight . | . . . Fastest Speed 50 | 50 160 110 Average Speed 138 | 155 160 131 Slowest Speed 160 | 160 160 160 Overloaded Moves . | . . . Propulsion Burnouts . | . . . Robots Hopped . | . . . Potential Cave-ins . | . . . Cave-ins Triggered . | . . . Exploration Rate (%) 13 | 5 10 26 Regions Visited 2 Branch Regions 1 Pre-discovered Areas . | . . . Known Exits Taken . | . . . Unknown Exits Taken 2 | 1 1 . Scrap Searched . | . . . Spaces Dug . | . . . Terrain Destroyed . | . . . Melee . | . . . Projectile . | . . . AOE . | . . . Terrain Rammed . | . . . Walls Destroyed . | . . . Machines Disabled . | . . . Actions | -11 -10 -10 --------- Run | Yrd Mat Sub Total 599 | 104 60 435 Wait 57 | 8 14 35 Move 438 | 74 43 321 Hop . | . . . Pick Up 17 | 5 2 10 Fast Attach 9 | 7 . 2 Attach 3 | . . 3 Detach . | . . . Swap 8 | . 1 7 Drop 8 | . . 8 Fire 59 | 10 . 49 Melee . | . . . Ram . | . . . Kick . | . . . Crush . | . . . Escape Stasis . | . . . Rewire . | . . . Trap . | . . . Miscellaneous . | . . . Route ------- -11/Scrapyard -10/Materials -10/Subcaves History --------- Turn | Location | Event 6 | -11/Scrapyard | Discovered new exit (range 14) 166 | -11/Scrapyard | Entered Materials 229 | -10/Materials | Discovered new exit (range 2) 234 | -10/Materials | Prayed at D.C.S.S. Altar Unit 253 | -10/Materials | Entered Subcaves 254 | -10/Subcaves | Approached by a straggling Scientist 305 | -10/Subcaves | Shifting Twisted Machinery released Spk. Treads 336 | -10/Subcaves | Build established: Mutant 358 | -10/Subcaves | Core integrity fell below 50% 395 | -10/Subcaves | Lost 4 parts (1n1u2w) 430 | -10/Subcaves | Shifting Twisted Machinery released Riot Gun 620 | -10/Subcaves | X0-1V1 mutated your Weapon slot to Propulsion slot 627 | -10/Subcaves | A swath of the cavern ceiling suddenly collapsed 734 | -10/Subcaves | Core integrity fell below 20% 740 | -10/Subcaves | Ranged accuracy permanently improved by X0-1V1 (+5%; -50 max core) 774 | -10/Subcaves | A swath of the cavern ceiling suddenly collapsed 817 | -10/Subcaves | System corruption reached 10% 849 | -10/Subcaves | Destroyed by Y-45 Defender with Heavy Assault Rifle Last Messages --------------- 00754_ Dropped Flamer. 00755_ Lgt. Armor Plating self-destruct mechanism malfunctions. 00755_ Acquired Sub. Machine Gun. 00757_ Acquired 13 matter. A swath of the cavern ceiling suddenly collapses. 00790_ System corrupted: Component data lost. 00816_ X0-1V1 brushes you with a corrupting influence (+12 system corruption). 00826_ System corrupted: Heat flow error (+118). 00827_ X0-1V1: "School them in the art of offensive power!" 00827_ Chain reaction triggered in Imp. Ion Engine. 00827_ X0-1V1: "The ol' switcheroo!" G-47 Trooper form resolidifies at new position. G-34 Mercenary form resolidifies at new position. Y-45 Defender form resolidifies at new position. Form resolidifies at new position. 00827_ G-47 Trooper destroyed. 00834_ G-34 Mercenary destroyed. 00849_ X0-1V1 bursts into laughter! Map ----- +----------------------------------------------------+ | ????????????????????????????????????????????????? | | ????????????????????????????????????????????????? | | ????????????????????????????????????????????????? | | ????????????????????????????????????????????????? | | ????????????????????????????????????????????????? | | ????????????????????????????????????????????????? | | ????????????????????????????????????????????????? | | ????????????????????????????????????????????????? | | ????????????????????????????????????????????????? | | ????????????????????????????????????????????????? | | ???????????????????????????# ???????????????????? | | ??????????????????????????? ??????????????????? | | ?????????????????????????## ? ????????????????? | | ?????????????????????????# ????????????????? | | ?????????????????????????# ????????????????? | | ????????????????????????? ? ????????????????? | | ????????????????????????? ? ????????????????? | | ?????????????????????????# # #????????????????? | | ????????????????????????? # #????????????????? | | ????????????????????????## ## #????????????????? | | ????????????????????????? # ##???????????????? | | ???????????????????????### ## #???????????????? | | ???????????????????????# #???????????????? | | ???????????????????????# #???????????????? | | ????????????????????##### #???????????????? | | ????????????????????# @% #????????????????? | | ????????????????????# Y;% ##???????????????? | | ????????????????????# ; #???????????????? | | ????????????????????# #;; #???????????????? | | ????????????????????# ##### ##??????????????? | | ????????????????????######## ?# #??????????????? | | ???????????????????????## ## ##??????????????? | | ???????????????????????# ## #??????????????? | | ???????????????????????# ##??????????????? | | ??????????????????????## #???????????????? | | ??????????????????????# #???????????????? | | ????????????####??????# ######???????????????? | | ????????????# ##????## ##??????????????????? | | ????????????# #?#### ##?????????????????? | | ???#######??# ### #?????????????????? | | ??## #??## ## ##????????????????? | | ?## #??## ## ##???????????????? | | ?# ##?# ## ###?????????????? | | ?# ## ### | ## ### #?????????????? | | ## ### !!## #?## #?????????????? | | ### =%## #??# #?????????????? | | ###### =*## # #??##" #?????????????? | | ### ## #"##???#""" ##?????????????? | | #""### """#????##"""##?????????????? | | #"###### "#### #"### #?????????????? | +----------------------------------------------------+ Best States ------------- Heat Dissipation 63 Energy Generation 12 Energy Capacity 265 Matter Stores 300 Matter Capacity 300 Sight Range 16 Terrain Scan Density 10 Evasion (%) 40 Recoil Reduction 2 Item Schematics ----------------- None Robot Schematics ------------------ None Fabricated ------------ Nothing Repaired ---------- Nothing Studied --------- None Alien Tech Used ----------------- None Achievements -------------- None Challenges ------------ None Game ------ Seed StrikeExoskeletonGun Manual? 0 Play Time 00:11:55 Cumulative 69.3 hours Start 2026.07.01 @ 11:13:38 End 2026.07.01 @ 11:24:47 Sessions 1 Manual Loads 0 Difficulty Rogue Special Mode None Game No. 218 Rogue 218 Adventurer 0 Explorer 0 Win Type - Total 0 Types 0/0/0/0/0/0/0/0/0/0 Lore% 63 Gallery% 37 Achievement% 36 Wizard Run 0 Options --------- Layout 0 ASCII 0 Keyboard 1 Movement Arrows Keybinds 0 Fullscreen 1 Font 24/Terminus Map View 64x52 Zoom Use 0% Tactical HUD 1 Map Filters NONE Filters NONE Steam 1 RUN: 6ebeece1-5ceb-4105-a34c-3d876168c82d